[Event "Late-Titled-Tuesday-Blitz-October-24-2023"]
[Site "Chess.com"]
[Date "2023.10.24"]
[Round "8"]
[White "hblanco"]
[Black "ural58"]
[Result "1-0"]
[WhiteElo "2727"]
[BlackElo "2505"]
[TimeControl "180+1"]
[EndTime "15:26:46 PDT"]
[Termination "hblanco won on time"]

1. e4 {[%clk 0:03:00.9]} 1... d5 {[%clk 0:02:56.9]} 2. exd5 {[%clk 0:03:00.1]}
2... Qxd5 {[%clk 0:02:57.4]} 3. Nc3 {[%clk 0:03:00.6]} 3... Qd6 {[%clk
0:02:56.9]} 4. d4 {[%clk 0:03:00.5]} 4... c6 {[%clk 0:02:57]} 5. Nf3 {[%clk
0:03:00.6]} 5... Bf5 {[%clk 0:02:56.7]} 6. Bd3 {[%clk 0:02:48.9]} 6... Bxd3
{[%clk 0:02:53.4]} 7. Qxd3 {[%clk 0:02:49.8]} 7... Nf6 {[%clk 0:02:53.1]} 8. Bg5
{[%clk 0:02:45.6]} 8... Nbd7 {[%clk 0:02:52.1]} 9. O-O-O {[%clk 0:02:42.5]} 9...
e6 {[%clk 0:02:51.6]} 10. Kb1 {[%clk 0:02:42.3]} 10... Be7 {[%clk 0:02:51.1]}
11. h4 {[%clk 0:02:41.4]} 11... h6 {[%clk 0:02:50]} 12. Bc1 {[%clk 0:02:39.3]}
12... Nb6 {[%clk 0:02:47.3]} 13. Ne5 {[%clk 0:02:38.6]} 13... Nbd5 {[%clk
0:02:43.4]} 14. Ne2 {[%clk 0:02:29.4]} 14... Nb4 {[%clk 0:02:31.7]} 15. Qg3
{[%clk 0:02:17.2]} 15... Nh5 {[%clk 0:02:14.4]} 16. Qf3 {[%clk 0:02:00.6]} 16...
Nf6 {[%clk 0:02:14.2]} 17. a3 {[%clk 0:01:55.8]} 17... Nbd5 {[%clk 0:02:13.7]}
18. g4 {[%clk 0:01:55.7]} 18... Rf8 {[%clk 0:02:03.6]} 19. g5 {[%clk 0:01:54.8]}
19... hxg5 {[%clk 0:02:03.8]} 20. hxg5 {[%clk 0:01:55.7]} 20... Nd7 {[%clk
0:02:04]} 21. Nc4 {[%clk 0:01:51.5]} 21... Qc7 {[%clk 0:02:03.9]} 22. Rh7 {[%clk
0:01:51.3]} 22... b5 {[%clk 0:02:01.2]} 23. Ne3 {[%clk 0:01:48.9]} 23... g6
{[%clk 0:01:58.7]} 24. Ng4 {[%clk 0:01:40.6]} 24... b4 {[%clk 0:01:51.7]} 25.
Nh6 {[%clk 0:01:32.6]} 25... bxa3 {[%clk 0:01:46]} 26. Rxf7 {[%clk 0:01:27.1]}
26... axb2 {[%clk 0:01:34]} 27. Bxb2 {[%clk 0:01:26.7]} 27... Rb8 {[%clk
0:01:32.3]} 28. Rd3 {[%clk 0:01:24.2]} 28... Bxg5 {[%clk 0:01:18.9]} 29. Rxf8+
{[%clk 0:01:11.7]} 29... Nxf8 {[%clk 0:01:18.8]} 30. Ng4 {[%clk 0:01:12.4]}
30... Nf4 {[%clk 0:00:56.8]} 31. Rc3 {[%clk 0:00:37.4]} 31... Nxe2 {[%clk
0:00:52.4]} 32. Qxe2 {[%clk 0:00:38.3]} 32... Qf4 {[%clk 0:00:46.7]} 33. Qd1
{[%clk 0:00:12.7]} 33... Rb6 {[%clk 0:00:46.2]} 34. Ne5 {[%clk 0:00:12.3]} 34...
Qe4 {[%clk 0:00:26.3]} 35. Ra3 {[%clk 0:00:09.8]} 35... Bf4 {[%clk 0:00:15.3]}
36. f3 {[%clk 0:00:10]} 36... Qd5 {[%clk 0:00:14]} 37. c4 {[%clk 0:00:10.6]}
37... Qd8 {[%clk 0:00:12.9]} 38. Nd3 {[%clk 0:00:10.7]} 38... Be3 {[%clk
0:00:11.3]} 39. Nc5 {[%clk 0:00:09.7]} 39... Qxd4 {[%clk 0:00:08.4]} 40. Qxd4
{[%clk 0:00:08.6]} 40... Bxd4 {[%clk 0:00:08.2]} 41. Nb3 {[%clk 0:00:09.5]}
41... Bxb2 {[%clk 0:00:08]} 42. Kxb2 {[%clk 0:00:10.4]} 42... Nd7 {[%clk
0:00:07.1]} 43. Kc2 {[%clk 0:00:10.6]} 43... Rb7 {[%clk 0:00:05.4]} 44. Nd4
{[%clk 0:00:11.2]} 44... Ne5 {[%clk 0:00:03.5]} 45. Kc3 {[%clk 0:00:06.5]} 45...
Kf7 {[%clk 0:00:03.1]} 46. f4 {[%clk 0:00:07.2]} 46... Nd7 {[%clk 0:00:02.9]}
47. Nxc6 {[%clk 0:00:07]} 1-0

[Event "Late-Titled-Tuesday-Blitz-October-24-2023"]
[Site "Chess.com"]
[Date "2023.10.24"]
[Round "8"]
[White "GoltsevDmitry2000"]
[Black "GlavkonVVS"]
[Result "1-0"]
[WhiteElo "2644"]
[BlackElo "2520"]
[TimeControl "180+1"]
[EndTime "15:26:47 PDT"]
[Termination "GoltsevDmitry2000 won on time"]

1. e4 {[%clk 0:02:59.7]} 1... Nf6 {[%clk 0:03:00.6]} 2. e5 {[%clk 0:02:59.6]}
2... Nd5 {[%clk 0:03:00.9]} 3. Nc3 {[%clk 0:03:00.1]} 3... Nb6 {[%clk
0:03:00.9]} 4. d4 {[%clk 0:02:59.4]} 4... d6 {[%clk 0:03:01.2]} 5. exd6 {[%clk
0:03:00.3]} 5... cxd6 {[%clk 0:03:01.4]} 6. Nf3 {[%clk 0:03:00.6]} 6... Bg4
{[%clk 0:03:00.6]} 7. Be2 {[%clk 0:02:59.3]} 7... g6 {[%clk 0:03:01]} 8. h3
{[%clk 0:02:59.1]} 8... Bxf3 {[%clk 0:03:00.6]} 9. Bxf3 {[%clk 0:03:00]} 9...
Nc6 {[%clk 0:03:01.1]} 10. O-O {[%clk 0:02:59.1]} 10... Bg7 {[%clk 0:03:01.4]}
11. Re1 {[%clk 0:02:56.2]} 11... Nxd4 {[%clk 0:02:49.6]} 12. Bxb7 {[%clk
0:02:54.2]} 12... Rb8 {[%clk 0:02:49.5]} 13. Ba6 {[%clk 0:02:51.2]} 13... O-O
{[%clk 0:02:48.7]} 14. Bg5 {[%clk 0:02:49.4]} 14... Ne6 {[%clk 0:02:47.8]} 15.
Bh4 {[%clk 0:02:47]} 15... Qc7 {[%clk 0:02:35.1]} 16. Qd2 {[%clk 0:02:34.8]}
16... Nc4 {[%clk 0:02:28.3]} 17. Bxc4 {[%clk 0:02:30.5]} 17... Qxc4 {[%clk
0:02:28.3]} 18. Bxe7 {[%clk 0:02:30.7]} 18... Rfe8 {[%clk 0:02:28.5]} 19. Qxd6
{[%clk 0:02:10.1]} 19... Rxb2 {[%clk 0:02:17.3]} 20. Nd5 {[%clk 0:02:04.8]}
20... Rxc2 {[%clk 0:01:55.8]} 21. Bf6 {[%clk 0:01:53.9]} 21... Bf8 {[%clk
0:01:29.3]} 22. Qe5 {[%clk 0:01:36.6]} 22... Rd2 {[%clk 0:01:02.2]} 23. Rad1
{[%clk 0:01:24.7]} 23... Qxa2 {[%clk 0:00:49.8]} 24. Rxd2 {[%clk 0:01:13.1]}
24... Qxd2 {[%clk 0:00:49.2]} 25. Bg5 {[%clk 0:01:12.1]} 25... Nxg5 {[%clk
0:00:16.2]} 26. Nf6+ {[%clk 0:01:08.1]} 26... Kg7 {[%clk 0:00:16.1]} 27. Nxe8+
{[%clk 0:01:06.1]} 27... Kh6 {[%clk 0:00:15.7]} 28. Nf6 {[%clk 0:01:01.3]} 28...
Bd6 {[%clk 0:00:11.8]} 29. Ng4+ {[%clk 0:00:20.9]} 29... Kh5 {[%clk 0:00:11.6]}
30. Qe2 {[%clk 0:00:12]} 30... Qxe2 {[%clk 0:00:09.7]} 31. Rxe2 {[%clk
0:00:12.9]} 31... f5 {[%clk 0:00:09.1]} 32. Nf6+ {[%clk 0:00:12]} 32... Kh6
{[%clk 0:00:08.8]} 33. Ra2 {[%clk 0:00:10.7]} 33... Bc5 {[%clk 0:00:08.9]} 34.
Nd7 {[%clk 0:00:08]} 34... Bd4 {[%clk 0:00:09.2]} 35. Ra4 {[%clk 0:00:07.7]}
35... Ne6 {[%clk 0:00:09.3]} 36. Nf8 {[%clk 0:00:07.3]} 36... Bxf2+ {[%clk
0:00:07]} 37. Kxf2 {[%clk 0:00:07.9]} 37... Nxf8 {[%clk 0:00:07.5]} 38. Rxa7
{[%clk 0:00:08.5]} 38... Ne6 {[%clk 0:00:08]} 39. Re7 {[%clk 0:00:07.9]} 39...
Ng5 {[%clk 0:00:08.2]} 40. Ke3 {[%clk 0:00:07.4]} 40... Ne4 {[%clk 0:00:07.6]}
41. Kf4 {[%clk 0:00:06.4]} 41... Nf6 {[%clk 0:00:07.7]} 42. Ke5 {[%clk
0:00:05.8]} 42... Nh5 {[%clk 0:00:06]} 43. Ra7 {[%clk 0:00:05.3]} 43... Ng3
{[%clk 0:00:05.1]} 44. Kf6 {[%clk 0:00:05.3]} 44... Ne4+ {[%clk 0:00:04.8]} 45.
Kf7 {[%clk 0:00:05.8]} 45... Kg5 {[%clk 0:00:04.6]} 46. Kg7 {[%clk 0:00:05.7]}
1-0

[Event "Late-Titled-Tuesday-Blitz-October-24-2023"]
[Site "Chess.com"]
[Date "2023.10.24"]
[Round "8"]
[White "ATM622"]
[Black "IMSlavin"]
[Result "1-0"]
[WhiteElo "2416"]
[BlackElo "2236"]
[TimeControl "180+1"]
[EndTime "15:26:48 PDT"]
[Termination "ATM622 won by checkmate"]

1. d4 {[%clk 0:03:00.9]} 1... Nc6 {[%clk 0:02:59.4]} 2. c4 {[%clk 0:03:00.4]}
2... e5 {[%clk 0:02:59.3]} 3. Nf3 {[%clk 0:02:59.5]} 3... d6 {[%clk 0:02:59]} 4.
g3 {[%clk 0:02:54.2]} 4... Bg4 {[%clk 0:02:58.3]} 5. d5 {[%clk 0:02:53.3]} 5...
Nce7 {[%clk 0:02:57.9]} 6. Bg2 {[%clk 0:02:53.2]} 6... Ng6 {[%clk 0:02:54]} 7.
O-O {[%clk 0:02:51.4]} 7... Be7 {[%clk 0:02:53.9]} 8. Nc3 {[%clk 0:02:48.7]}
8... Qc8 {[%clk 0:02:52.2]} 9. Re1 {[%clk 0:02:47.5]} 9... Bh3 {[%clk
0:02:51.6]} 10. e4 {[%clk 0:02:47.6]} 10... h6 {[%clk 0:02:51]} 11. b4 {[%clk
0:02:44.8]} 11... a5 {[%clk 0:02:50.4]} 12. b5 {[%clk 0:02:43.2]} 12... b6
{[%clk 0:02:50.2]} 13. Nd2 {[%clk 0:02:37.5]} 13... Bxg2 {[%clk 0:02:48.8]} 14.
Kxg2 {[%clk 0:02:38.4]} 14... Nf6 {[%clk 0:02:49.2]} 15. Nf1 {[%clk 0:02:36.8]}
15... O-O {[%clk 0:02:47.1]} 16. h4 {[%clk 0:02:31.5]} 16... Nh7 {[%clk
0:02:44.5]} 17. h5 {[%clk 0:02:28.4]} 17... Nh8 {[%clk 0:02:42.7]} 18. f4 {[%clk
0:02:23.3]} 18... exf4 {[%clk 0:02:39.3]} 19. gxf4 {[%clk 0:02:24.2]} 19... f5
{[%clk 0:02:39.2]} 20. e5 {[%clk 0:02:23.2]} 20... dxe5 {[%clk 0:02:39]} 21.
fxe5 {[%clk 0:02:22.6]} 21... Bg5 {[%clk 0:02:36.9]} 22. e6 {[%clk 0:02:17.3]}
22... Qe8 {[%clk 0:02:31]} 23. Ng3 {[%clk 0:02:11.9]} 23... Bxc1 {[%clk
0:02:19.8]} 24. Rxc1 {[%clk 0:02:10.7]} 24... f4 {[%clk 0:02:20.3]} 25. e7
{[%clk 0:02:00.3]} 25... Rf7 {[%clk 0:02:07.4]} 26. Nf1 {[%clk 0:01:48.7]} 26...
Rxe7 {[%clk 0:02:03.7]} 27. d6 {[%clk 0:01:24.7]} 27... cxd6 {[%clk 0:01:50.1]}
28. Rxe7 {[%clk 0:01:23.3]} 28... Qxe7 {[%clk 0:01:48.6]} 29. Qd5+ {[%clk
0:01:23.4]} 29... Nf7 {[%clk 0:01:38]} 30. Qxa8+ {[%clk 0:01:22]} 30... Nf8
{[%clk 0:01:37.7]} 31. Ne4 {[%clk 0:01:20.6]} 31... Ne5 {[%clk 0:01:28.8]} 32.
Qd5+ {[%clk 0:01:19.1]} 32... Kh7 {[%clk 0:01:27.3]} 33. Qxd6 {[%clk 0:01:17.1]}
33... f3+ {[%clk 0:01:26.7]} 34. Kh3 {[%clk 0:01:14.1]} 34... Qe8 {[%clk
0:01:23.8]} 35. Nfg3 {[%clk 0:01:06]} 35... Qc8+ {[%clk 0:01:15.2]} 36. Kh2
{[%clk 0:01:05.9]} 36... Ng4+ {[%clk 0:01:12.9]} 37. Kg1 {[%clk 0:01:06.2]}
37... Ne6 {[%clk 0:01:01.7]} 38. Rf1 {[%clk 0:00:58.9]} 38... Qxc4 {[%clk
0:00:56.6]} 39. Rxf3 {[%clk 0:00:49.4]} 39... Qxa2 {[%clk 0:00:46.3]} 40. Qd2
{[%clk 0:00:42.8]} 40... Qb1+ {[%clk 0:00:41.7]} 41. Rf1 {[%clk 0:00:33.8]}
41... Qxb5 {[%clk 0:00:41.3]} 42. Qc2 {[%clk 0:00:29]} 42... Kg8 {[%clk
0:00:24.9]} 43. Qc8+ {[%clk 0:00:27.7]} 43... Kh7 {[%clk 0:00:22.2]} 44. Qxe6
{[%clk 0:00:26]} 44... Ne3 {[%clk 0:00:13.3]} 45. Qg6+ {[%clk 0:00:23.8]} 45...
Kg8 {[%clk 0:00:13]} 46. Nf6+ {[%clk 0:00:24.1]} 46... Kf8 {[%clk 0:00:12.6]}
47. Nh7+ {[%clk 0:00:23.2]} 47... Ke7 {[%clk 0:00:11.5]} 48. Qxg7+ {[%clk
0:00:23.4]} 48... Kd6 {[%clk 0:00:11.5]} 49. Qxh6+ {[%clk 0:00:22.3]} 49... Kc7
{[%clk 0:00:11.1]} 50. Rf7+ {[%clk 0:00:21.5]} 50... Kd8 {[%clk 0:00:07.8]} 51.
Qd6+ {[%clk 0:00:20.9]} 51... Ke8 {[%clk 0:00:06.8]} 52. Qe7# {[%clk 0:00:21.1]}
1-0

[Event "Late-Titled-Tuesday-Blitz-October-24-2023"]
[Site "Chess.com"]
[Date "2023.10.24"]
[Round "8"]
[White "Lennis93"]
[Black "dosto07"]
[Result "1-0"]
[WhiteElo "2773"]
[BlackElo "2544"]
[TimeControl "180+1"]
[EndTime "15:26:50 PDT"]
[Termination "Lennis93 won on time"]

1. Nf3 {[%clk 0:02:59.8]} 1... d5 {[%clk 0:03:00.1]} 2. g3 {[%clk 0:03:00.2]}
2... Nf6 {[%clk 0:03:00.3]} 3. Bg2 {[%clk 0:03:00.9]} 3... Bf5 {[%clk
0:03:00.6]} 4. O-O {[%clk 0:03:01.4]} 4... e6 {[%clk 0:03:01.1]} 5. c4 {[%clk
0:03:00]} 5... c6 {[%clk 0:02:55.7]} 6. Qb3 {[%clk 0:02:58.5]} 6... Qb6 {[%clk
0:02:55.1]} 7. d3 {[%clk 0:02:59.1]} 7... Nbd7 {[%clk 0:02:52.7]} 8. Be3 {[%clk
0:02:59.3]} 8... Bc5 {[%clk 0:02:51.4]} 9. Bxc5 {[%clk 0:02:50.5]} 9... Nxc5
{[%clk 0:02:45.4]} 10. Qa3 {[%clk 0:02:41]} 10... a5 {[%clk 0:02:40.5]} 11. Nd4
{[%clk 0:02:34.8]} 11... Bg6 {[%clk 0:02:39.1]} 12. Nb3 {[%clk 0:02:34.9]} 12...
Nfd7 {[%clk 0:02:32.8]} 13. cxd5 {[%clk 0:02:29.8]} 13... cxd5 {[%clk
0:02:22.6]} 14. Rc1 {[%clk 0:02:28.9]} 14... Nxb3 {[%clk 0:01:35.4]} 15. axb3
{[%clk 0:02:29.8]} 15... f6 {[%clk 0:01:18.6]} 16. b4 {[%clk 0:02:27.4]} 16...
a4 {[%clk 0:01:08.8]} 17. Nc3 {[%clk 0:02:27.2]} 17... O-O {[%clk 0:01:06]} 18.
Nxa4 {[%clk 0:02:27.1]} 18... Qb5 {[%clk 0:00:55.8]} 19. Nc3 {[%clk 0:02:25.3]}
19... Rxa3 {[%clk 0:00:50.8]} 20. Nxb5 {[%clk 0:02:25.6]} 20... Rb3 {[%clk
0:00:51.2]} 21. Nd4 {[%clk 0:02:25.4]} 21... Rxb4 {[%clk 0:00:42.8]} 22. Nxe6
{[%clk 0:02:25.8]} 22... Rb8 {[%clk 0:00:33]} 23. Bxd5 {[%clk 0:02:08.6]} 23...
Bf7 {[%clk 0:00:32.9]} 24. Nf4 {[%clk 0:01:03.6]} 24... Bxd5 {[%clk 0:00:21.8]}
25. Nxd5 {[%clk 0:01:04.5]} 25... Rxb2 {[%clk 0:00:22.3]} 26. Rc7 {[%clk
0:00:58.9]} 26... Ne5 {[%clk 0:00:10]} 27. Nf4 {[%clk 0:00:53]} 27... Ng6 {[%clk
0:00:07.5]} 28. Nh5 {[%clk 0:00:43.9]} 28... Rxe2 {[%clk 0:00:07.5]} 29. Rxg7+
{[%clk 0:00:43.9]} 29... Kh8 {[%clk 0:00:07]} 30. Rxb7 {[%clk 0:00:41.3]} 30...
Rbe8 {[%clk 0:00:05.5]} 31. Raa7 {[%clk 0:00:41.1]} 31... Ne7 {[%clk 0:00:04.1]}
32. Nxf6 {[%clk 0:00:40.2]} 32... Rf8 {[%clk 0:00:03.4]} 33. Rxe7 {[%clk
0:00:35.2]} 33... Rxe7 {[%clk 0:00:03.3]} 34. Rxe7 {[%clk 0:00:35.7]} 34... Rxf6
{[%clk 0:00:04.2]} 35. Re4 {[%clk 0:00:32.7]} 35... h6 {[%clk 0:00:04]} 36. d4
{[%clk 0:00:32.9]} 36... Kg7 {[%clk 0:00:04.5]} 37. f4 {[%clk 0:00:31.4]} 37...
Rd6 {[%clk 0:00:04.6]} 38. Kf2 {[%clk 0:00:31.2]} 38... Kf6 {[%clk 0:00:05.2]}
39. Kf3 {[%clk 0:00:31.7]} 39... Ra6 {[%clk 0:00:04.7]} 40. Re5 {[%clk
0:00:30.3]} 40... Ra2 {[%clk 0:00:04.1]} 41. h4 {[%clk 0:00:25.1]} 41... Rd2
{[%clk 0:00:02.9]} 42. d5 {[%clk 0:00:24.9]} 42... Rd3+ {[%clk 0:00:02.9]} 43.
Kg4 {[%clk 0:00:25.3]} 43... Kg6 {[%clk 0:00:02.3]} 44. h5+ {[%clk 0:00:25.2]}
44... Kg7 {[%clk 0:00:02.7]} 45. Re7+ {[%clk 0:00:20.4]} 45... Kf6 {[%clk
0:00:02.9]} 46. Re6+ {[%clk 0:00:20.8]} 46... Kg7 {[%clk 0:00:03]} 47. d6 {[%clk
0:00:21.1]} 47... Kf7 {[%clk 0:00:03.5]} 48. Rxh6 {[%clk 0:00:20.6]} 48... Kg7
{[%clk 0:00:02.9]} 49. Rg6+ {[%clk 0:00:20.9]} 49... Kh7 {[%clk 0:00:03.2]} 50.
Kh4 {[%clk 0:00:20.3]} 50... Rd5 {[%clk 0:00:03.8]} 51. g4 {[%clk 0:00:19.7]}
51... Rd1 {[%clk 0:00:04]} 52. f5 {[%clk 0:00:19.8]} 52... Rd2 {[%clk
0:00:03.1]} 53. Kg5 {[%clk 0:00:20]} 53... Rd4 {[%clk 0:00:02.8]} 54. Re6 {[%clk
0:00:20.2]} 1-0

[Event "Late-Titled-Tuesday-Blitz-October-24-2023"]
[Site "Chess.com"]
[Date "2023.10.24"]
[Round "8"]
[White "Karttunen"]
[Black "topin8"]
[Result "0-1"]
[WhiteElo "2568"]
[BlackElo "2469"]
[TimeControl "180+1"]
[EndTime "15:26:57 PDT"]
[Termination "topin8 won by resignation"]

1. d4 {[%clk 0:03:00.9]} 1... Nf6 {[%clk 0:02:58.1]} 2. Bg5 {[%clk 0:03:00.4]}
2... e6 {[%clk 0:02:53.8]} 3. e4 {[%clk 0:02:59.9]} 3... h6 {[%clk 0:02:53.9]}
4. Bxf6 {[%clk 0:02:59.6]} 4... Qxf6 {[%clk 0:02:54.8]} 5. Nc3 {[%clk
0:02:58.2]} 5... Bb4 {[%clk 0:02:52.7]} 6. Ne2 {[%clk 0:02:57.2]} 6... c5 {[%clk
0:02:19.9]} 7. a3 {[%clk 0:02:48.9]} 7... Bxc3+ {[%clk 0:02:17.9]} 8. bxc3
{[%clk 0:02:48.4]} 8... d6 {[%clk 0:02:08.1]} 9. f4 {[%clk 0:02:46.6]} 9... e5
{[%clk 0:01:33.6]} 10. dxe5 {[%clk 0:02:38.8]} 10... dxe5 {[%clk 0:01:31.6]} 11.
f5 {[%clk 0:02:23.7]} 11... O-O {[%clk 0:01:15.4]} 12. Ng3 {[%clk 0:02:18]}
12... Qg5 {[%clk 0:00:45.9]} 13. Qd2 {[%clk 0:01:59.2]} 13... Qxd2+ {[%clk
0:00:40.9]} 14. Kxd2 {[%clk 0:01:58.9]} 14... Nd7 {[%clk 0:00:29]} 15. a4 {[%clk
0:01:34.2]} 15... b6 {[%clk 0:00:17.7]} 16. Nh5 {[%clk 0:01:25.2]} 16... g6
{[%clk 0:00:15]} 17. Ng3 {[%clk 0:01:19.8]} 17... Nf6 {[%clk 0:00:14.3]} 18.
fxg6 {[%clk 0:01:06]} 18... fxg6 {[%clk 0:00:14.4]} 19. Bc4+ {[%clk 0:01:05.5]}
19... Kg7 {[%clk 0:00:14.3]} 20. h3 {[%clk 0:01:00.3]} 20... Bb7 {[%clk
0:00:13.8]} 21. Ke3 {[%clk 0:01:00.2]} 21... h5 {[%clk 0:00:12.7]} 22. Bd3
{[%clk 0:00:44.5]} 22... h4 {[%clk 0:00:12.1]} 23. Ne2 {[%clk 0:00:44.6]} 23...
Rac8 {[%clk 0:00:12.3]} 24. c4 {[%clk 0:00:44.4]} 24... Nh5 {[%clk 0:00:12.4]}
25. Rhf1 {[%clk 0:00:44]} 25... g5 {[%clk 0:00:12.4]} 26. Nc3 {[%clk 0:00:43.8]}
26... Nf4 {[%clk 0:00:10.7]} 27. Rg1 {[%clk 0:00:43.5]} 27... Rcd8 {[%clk
0:00:08.5]} 28. a5 {[%clk 0:00:42.3]} 28... Ra8 {[%clk 0:00:07.4]} 29. Rab1
{[%clk 0:00:41.8]} 29... Rf6 {[%clk 0:00:06.4]} 30. Nd1 {[%clk 0:00:31.7]} 30...
Nh5 {[%clk 0:00:05]} 31. Nf2 {[%clk 0:00:30.5]} 31... Rf4 {[%clk 0:00:04.5]} 32.
Ng4 {[%clk 0:00:30.6]} 32... Ng3 {[%clk 0:00:04.7]} 33. axb6 {[%clk 0:00:27.9]}
33... axb6 {[%clk 0:00:03.4]} 34. Rxb6 {[%clk 0:00:28]} 34... Bxe4 {[%clk
0:00:03.9]} 35. Nxe5 {[%clk 0:00:22.6]} 35... Bxd3 {[%clk 0:00:04]} 36. Rb7+
{[%clk 0:00:21.7]} 36... Kh6 {[%clk 0:00:02]} 37. Nf7+ {[%clk 0:00:19.7]} 37...
Kg6 {[%clk 0:00:01.8]} 38. Ne5+ {[%clk 0:00:20]} 38... Kf5 {[%clk 0:00:02.3]}
39. Nxd3 {[%clk 0:00:18.3]} 39... Re4+ {[%clk 0:00:02.8]} 40. Kd2 {[%clk
0:00:18.3]} 40... Re2+ {[%clk 0:00:03.2]} 41. Kc3 {[%clk 0:00:18.7]} 41... Ra3+
{[%clk 0:00:03.7]} 42. Kb2 {[%clk 0:00:19]} 42... Rxd3 {[%clk 0:00:04.3]} 43.
Rf7+ {[%clk 0:00:18.2]} 43... Kg6 {[%clk 0:00:04.7]} 44. Rc7 {[%clk 0:00:17.7]}
44... Rdd2 {[%clk 0:00:04.9]} 45. Rc1 {[%clk 0:00:17.4]} 45... Ne4 {[%clk
0:00:05]} 46. Rc6+ {[%clk 0:00:17.5]} 46... Kh5 {[%clk 0:00:05.1]} 47. Rc8
{[%clk 0:00:15.4]} 47... Rxg2 {[%clk 0:00:04.6]} 48. Rh8+ {[%clk 0:00:15.4]}
48... Kg6 {[%clk 0:00:05]} 49. Re8 {[%clk 0:00:15.7]} 49... Nf6 {[%clk 0:00:05]}
50. Re6 {[%clk 0:00:15.7]} 50... Kf5 {[%clk 0:00:05]} 51. Rc6 {[%clk 0:00:15.3]}
51... Ne4 {[%clk 0:00:05.4]} 52. Rf1+ {[%clk 0:00:15.3]} 52... Rgf2 {[%clk
0:00:05.7]} 53. Rc1 {[%clk 0:00:16.2]} 53... Kf4 {[%clk 0:00:05.6]} 54. Rg6
{[%clk 0:00:15.9]} 54... Kg3 {[%clk 0:00:05.4]} 55. Re6 {[%clk 0:00:15.5]} 55...
Rde2 {[%clk 0:00:05.3]} 0-1

[Event "Late-Titled-Tuesday-Blitz-October-24-2023"]
[Site "Chess.com"]
[Date "2023.10.24"]
[Round "8"]
[White "MajorCoast"]
[Black "C_K_G"]
[Result "1-0"]
[WhiteElo "2259"]
[BlackElo "1931"]
[TimeControl "180+1"]
[EndTime "15:27:05 PDT"]
[Termination "MajorCoast won on time"]

1. d4 {[%clk 0:03:00.9]} 1... d5 {[%clk 0:02:59.2]} 2. Bf4 {[%clk 0:03:00.1]}
2... e6 {[%clk 0:02:59.4]} 3. e3 {[%clk 0:03:00.4]} 3... Nf6 {[%clk 0:02:59.9]}
4. Bd3 {[%clk 0:02:58.6]} 4... Bd6 {[%clk 0:03:00]} 5. Bg3 {[%clk 0:02:58.2]}
5... c5 {[%clk 0:02:59.9]} 6. c3 {[%clk 0:02:58.4]} 6... Nc6 {[%clk 0:02:59.3]}
7. Nd2 {[%clk 0:02:58.5]} 7... c4 {[%clk 0:02:58.5]} 8. Bc2 {[%clk 0:02:57.7]}
8... Qc7 {[%clk 0:02:57.6]} 9. b3 {[%clk 0:02:56.7]} 9... cxb3 {[%clk
0:02:52.9]} 10. axb3 {[%clk 0:02:55.9]} 10... O-O {[%clk 0:02:48.5]} 11. Ngf3
{[%clk 0:02:55.8]} 11... h6 {[%clk 0:02:44.8]} 12. O-O {[%clk 0:02:48.7]} 12...
e5 {[%clk 0:02:39.2]} 13. dxe5 {[%clk 0:02:46.8]} 13... Nxe5 {[%clk 0:02:40.1]}
14. Nxe5 {[%clk 0:02:47]} 14... Bxe5 {[%clk 0:02:41]} 15. Bxe5 {[%clk
0:02:47.3]} 15... Qxe5 {[%clk 0:02:41.6]} 16. c4 {[%clk 0:02:45.2]} 16... Bg4
{[%clk 0:02:28.6]} 17. Qb1 {[%clk 0:02:36.8]} 17... Be2 {[%clk 0:02:13.2]} 18.
Re1 {[%clk 0:02:33.5]} 18... Ng4 {[%clk 0:01:54.9]} 19. g3 {[%clk 0:02:01.3]}
19... Qh5 {[%clk 0:01:51.8]} 20. h4 {[%clk 0:01:55.9]} 20... g5 {[%clk 0:01:24]}
21. Rxe2 {[%clk 0:01:44.6]} 21... gxh4 {[%clk 0:01:23.8]} 22. f3 {[%clk
0:01:39]} 22... hxg3 {[%clk 0:00:52.1]} 23. fxg4 {[%clk 0:01:36.6]} 23... Qxg4
{[%clk 0:00:50.1]} 24. Rg2 {[%clk 0:01:34.2]} 24... h5 {[%clk 0:00:49.3]} 25.
Bd1 {[%clk 0:01:32.2]} 25... Qh4 {[%clk 0:00:46.5]} 26. Qf5 {[%clk 0:01:27.4]}
26... Rfe8 {[%clk 0:00:40.4]} 27. Nf3 {[%clk 0:01:20.6]} 27... Qg4 {[%clk
0:00:32.1]} 28. Qxg4+ {[%clk 0:01:17.6]} 28... hxg4 {[%clk 0:00:33]} 29. Rxg3
{[%clk 0:01:17.9]} 29... Rxe3 {[%clk 0:00:32.9]} 30. Rxg4+ {[%clk 0:01:15.6]}
30... Kf8 {[%clk 0:00:33.1]} 31. Kf2 {[%clk 0:01:15.3]} 31... Rc3 {[%clk
0:00:21.1]} 32. cxd5 {[%clk 0:01:13.7]} 32... Rd8 {[%clk 0:00:19.5]} 33. Rd4
{[%clk 0:01:10.9]} 33... a6 {[%clk 0:00:19.2]} 34. Be2 {[%clk 0:01:07.3]} 34...
Rc2 {[%clk 0:00:18.5]} 35. Ke3 {[%clk 0:01:06.1]} 35... Re8+ {[%clk 0:00:17.7]}
36. Re4 {[%clk 0:00:55.1]} 36... Rxe2+ {[%clk 0:00:15.6]} 37. Kxe2 {[%clk
0:00:54.4]} 37... Rxe4+ {[%clk 0:00:16.2]} 38. Kd3 {[%clk 0:00:54.2]} 38... Re8
{[%clk 0:00:15.4]} 39. Kd4 {[%clk 0:00:52.2]} 39... Rd8 {[%clk 0:00:15.3]} 40.
Kc5 {[%clk 0:00:52.2]} 40... Ke7 {[%clk 0:00:13.8]} 41. Re1+ {[%clk 0:00:50.2]}
41... Kf6 {[%clk 0:00:13.7]} 42. Nd2 {[%clk 0:00:40.7]} 42... Rc8+ {[%clk
0:00:13]} 43. Kd4 {[%clk 0:00:34.9]} 43... Rd8 {[%clk 0:00:11.5]} 44. Nc4 {[%clk
0:00:34]} 44... Rd7 {[%clk 0:00:09.4]} 45. Rf1+ {[%clk 0:00:32.4]} 45... Kg7
{[%clk 0:00:08.5]} 46. Kc5 {[%clk 0:00:29.2]} 46... f6 {[%clk 0:00:06.2]} 47.
Kb6 {[%clk 0:00:28]} 47... Rxd5 {[%clk 0:00:05]} 48. Kxb7 {[%clk 0:00:25.1]}
48... Rb5+ {[%clk 0:00:05.1]} 49. Kxa6 {[%clk 0:00:22.5]} 49... Rxb3 {[%clk
0:00:05.7]} 50. Ka5 {[%clk 0:00:20.5]} 50... Rb8 {[%clk 0:00:04.2]} 51. Nb6
{[%clk 0:00:18.9]} 51... Rf8 {[%clk 0:00:01.8]} 52. Kb5 {[%clk 0:00:18.5]} 52...
f5 {[%clk 0:00:01.6]} 53. Kc4 {[%clk 0:00:18.1]} 53... Kg6 {[%clk 0:00:01.8]}
54. Nd5 {[%clk 0:00:17.3]} 54... Re8 {[%clk 0:00:01.4]} 55. Nf4+ {[%clk
0:00:16.8]} 55... Kg5 {[%clk 0:00:01.7]} 56. Nd5 {[%clk 0:00:15.7]} 1-0